Cogmind - Beta 10.2 @@@ ROGUE MODE // 2021.01.06 @ 12:28:35 Player: Cracklepappy Result: Destroyed by 8R-AWN with 8R-AWN's Boregun Performance ------------- Evolutions (1) 500 Regions Visited (5) 1000 Robots Destroyed (57) 285 Value Destroyed (1453) 1453 Prototype IDs (26) 520 Alien Tech Used (0) 0 Bonus (300) 300 TOTAL SCORE: 4058 Bonus ------- Aligned with FarCom 300 Cogmind --------- Core Integrity 0/400 Matter 300/300 Energy 100/100 System Corruption 0% Temperature Cool (0) Movement Treading (180) Ox1 Location -9/Exiles Parts ------- > --- POWER (1) -------- (None) > --- PROPULSION (2) --- Improved Treads > --- UTILITY (4) ------ Large Storage Unit Large Storage Unit Core Shielding Core Shielding > --- WEAPON (2) ------- (None) > --- INVENTORY (16) --- High-capacity Matter Pod (200) Light Armor Plating Hardened Light Armor Plating Hardened Light Armor Plating Hardened Light Armor Plating Autogun Autogun Peak State ------------ > --- POWER ------------ Heavy Ion Engine > --- PROPULSION ------- Light Treads Improved Treads > --- UTILITY ---------- Medium Storage Unit Large Storage Unit Large Storage Unit Hardened Light Armor Plating > --- WEAPON ----------- Autogun Autogun > --- INVENTORY -------- Ion Engine Light Treads Improved Treads Improved Treads Improved Treads Medium Storage Unit High-capacity Matter Pod Experimental Sensor Array Hardened Light Armor Plating Hardened Light Armor Plating Hardened Light Armor Plating Field Recycling Unit Autogun Grenade Launcher Grenade Launcher Grenade Launcher Grenade Launcher Grenade Launcher Mining Laser [Rating: 18] Favorites ----------- Power Ion Engine Engine Ion Engine Propulsion Light Treads Treads Light Treads Wheel Wheel Utility Large Storage Unit Storage Large Storage Unit Protection Light Armor Plating Weapon Autogun Energy Gun Medium Laser Ballistic Gun Autogun Launcher Grenade Launcher Build | -11 -10 -10 -9 -9 -9 ------- Run | Scr Mat Min Mat Min Exi Slots Evolved 2 | . . . 2 . . Power . | . . . . . . Propulsion . | . . . . . . Utility 2 | . . . 2 . . Weapon . | . . . . . . Parts Attached 50 | 7 15 4 12 . 12 Power 7 | 1 2 2 1 . 1 Engine 7 | 1 2 2 1 . 1 Core . | . . . . . . Reactor . | . . . . . . Propulsion 12 | 2 2 1 3 . 4 Treads 11 | 1 2 1 3 . 4 Leg . | . . . . . . Wheel 1 | 1 . . . . . Hover . | . . . . . . Flight . | . . . . . . Utility 13 | 2 5 . 3 . 3 Device . | . . . . . . Storage 8 | 2 5 . 1 . . Processor . | . . . . . . Hackware . | . . . . . . Protection 5 | . . . 2 . 3 Artifact . | . . . . . . Weapon 18 | 2 6 1 5 . 4 Energy Gun 4 | 2 2 . . . . Energy Cannon . | . . . . . . Ballistic Gun 8 | . 3 1 3 . 1 Ballistic Cannon . | . . . . . . Launcher 6 | . 1 . 2 . 3 Special Weapon . | . . . . . . Impact Weapon . | . . . . . . Slashing Weapon . | . . . . . . Piercing Weapon . | . . . . . . Special Melee Weapon . | . . . . . . Unidentified Prototypes 1 | . . . 1 . . Parts Lost 11 | . . 1 . . 10 Power 2 | . . . . . 2 Propulsion 5 | . . . . . 5 Utility 1 | . . . . . 1 Weapon 3 | . . 1 . . 2 Highest Loss Streak 6 | . . 1 . . 6 Average Slot Usage (%) 98 | . 99 100 99 100 96 Engine 12 | . 14 14 10 11 10 Treads 24 | . 26 28 21 22 21 Storage 28 | . 28 28 33 33 25 Protection 7 | . . . 10 11 18 Energy Gun 2 | . 7 . . . . Ballistic Gun 21 | . 20 28 21 22 17 Naked Turns . | . . . . . . Heaviest Build 59 | 15 43 43 59 57 57 Greatest Support 43 | 20 43 43 43 43 43 Greatest Overweight (x) 1 | 1 1 . 1 1 1 Average Overweight (x) . | . . . 1 1 1 Largest Inventory Capacity 20 | 8 16 16 20 20 20 Average Capacity 16 | 6 12 16 20 20 17 Most Carried 20 | 8 16 16 20 20 20 Average Carried 15 | 4 11 15 18 20 15 Final Capacity 20 | 8 16 16 20 20 16 Final Carried 20 | 8 16 16 20 20 7 Class Distribution -------------------- 67% | Mutant 32% | Hauler-Mutant Dominant Class ---------------- Mutant | -10/Materials Mutant | -10/Mines Hauler-Mutant | -9/Materials Hauler-Mutant | -9/Mines Mutant | -9/Exiles Resources | -11 -10 -10 -9 -9 -9 ----------- Run | Scr Mat Min Mat Min Exi Matter Collected 1843 | 270 444 414 504 193 18 Remotely . | . . . . . . Salvage Created 1977 | 118 519 422 678 230 10 Parts 107 | 6 30 24 38 9 . Haulers Intercepted 4 | . 2 . 2 . . Recyclers Shooed 1 | . 1 . . . . Parts Field Recycled . | . . . . . . Retrieved Matter . | . . . . . . Parts Self-Destructed . | . . . . . . Prevented . | . . . . . . Kills | -11 -10 -10 -9 -9 -9 ------- Run | Scr Mat Min Mat Min Exi Combat Hostiles Destroyed 48 | . 12 11 15 5 5 Melee 1 | . . 1 . . . Guns 34 | . 8 10 11 5 . AOE 12 | . 3 . 4 . 5 Classes Destroyed 12 | 2 4 1 3 1 1 Worker 2 | . . 1 1 . . Builder 1 | . . . 1 . . Tunneler 3 | 1 . 2 . . . Hauler 4 | . 2 . 2 . . Recycler 1 | 1 . . . . . Mechanic 1 | . . . 1 . . Watcher 2 | . 2 . . . . Swarmer 10 | . 3 3 4 . . Grunt 29 | . 9 8 8 4 . Duelist 1 | . . . . 1 . Sentry 3 | . . . 3 . . Assembled 5 | . . . . . 5 Best Kill Streak 6 | 1 5 3 6 3 5 Combat Bots Only 5 | . 4 2 4 3 5 Max Kills in Single Turn 4 | 1 2 1 4 1 4 Gunslinging . | . . . . . . Exploded 4 | . 2 . 3 . 4 Melee 1 | . . 1 . . . Uniques/NPCs Destroyed . | . . . . . . Combat | -11 -10 -10 -9 -9 -9 -------- Run | Scr Mat Min Mat Min Exi Damage Taken 3344 | . 403 581 749 99 1512 Core 548 | . 75 72 105 12 284 Absorbed by Shields . | . . . . . . Core Remaining (%) 70 | 100 . 41 . . . Volleys Fired 162 | 9 36 41 60 11 5 Largest 2 | 2 2 2 2 2 2 Hottest 100 | 100 100 46 60 46 60 Shots Fired 320 | 18 70 82 120 22 8 Gun 306 | 18 68 82 116 22 . Cannon . | . . . . . . Launcher 14 | . 2 . 4 . 8 Special . | . . . . . . Kinetic 272 | . 52 82 116 22 . Thermal 34 | 18 16 . . . . Explosive 14 | . 2 . 4 . 8 Electromagnetic . | . . . . . . Robot Hit Streak 15 | 5 15 10 15 6 . Robot Miss Streak 5 | 3 2 3 4 5 1 Penetration Max . | . . . . . . Secondary Targets 1 | . . . . 1 . Max Gunslinging Chain 1 | . . . . 1 . Shots Hit Robots 223 | 10 53 58 89 13 . Core Hits 134 | 3 25 21 31 9 45 Critical Hits 2 | . . . 1 1 . Critical Kills . | . . . . . . Critical Parts Destroyed 2 | . . . 1 1 . Melee Attacks . | . . . . . . Impact . | . . . . . . Slashing . | . . . . . . Piercing . | . . . . . . Sneak Attacks . | . . . . . . Combat Hostiles . | . . . . . . Follow-up Attacks . | . . . . . . Damage Inflicted 4193 | 127 882 871 1552 248 513 Guns 3146 | 127 655 812 1304 248 . Cannons . | . . . . . . Explosions 645 | . 184 . 224 . 237 Melee . | . . . . . . Ramming 402 | . 43 59 24 . 276 Kinetic 2882 | . 518 812 1304 248 . Thermal 264 | 127 137 . . . . Explosive 645 | . 184 . 224 . 237 Electromagnetic . | . . . . . . Impact . | . . . . . . Slashing . | . . . . . . Piercing . | . . . . . . Highest Corruption . | . . . . . . Average Corruption . | . . . . . . Corruption Purged . | . . . . . . Overload Shots . | . . . . . . Overflow Damage 11 | . 11 . . . . Projectiles . | . . . . . . Explosions 11 | . 11 . . . . Melee . | . . . . . . Knockbacks 3 | . 1 1 1 . . Impact 3 | . 1 1 1 . . Kinetic . | . . . . . . Secondary . | . . . . . . Self-Inflicted Damage 58 | . . . 36 . 22 Shots 2 | . . . 1 . 1 Rammed 125 | . 8 17 4 . 96 Targets Rammed 128 | . 8 20 4 . 96 Kicked . | . . . . . . Crushed 3 | . . 3 . . . Highest Temperature 350 | 215 350 54 83 34 9 Average Temperature 47 | 114 93 17 27 13 5 Received Heat Transfer 798 | . 207 252 282 57 . Siege Activations . | . . . . . . Robots Corrupted . | . . . . . . Combat Hostiles . | . . . . . . Parts Fried . | . . . . . . Impact Corruptions . | . . . . . . Robots Melted 1 | . 1 . . . . Combat Hostiles 1 | . 1 . . . . Parts Melted . | . . . . . . Heat Transferred 777 | 370 407 . . . . Parts Sabotaged . | . . . . . . Parts Stolen . | . . . . . . Parts Stripped . | . . . . . . Power Chain Reactions . | . . . . . . Missiles Intercepted . | . . . . . . Alert | -11 -10 -10 -9 -9 -9 ------- Run | Scr Mat Min Mat Min Exi Peak Influence 320 | 10 228 223 320 199 . Initial 79 | . 6 23 11 79 . Average 105 | 3 103 79 121 173 . Maximum Alert Level 1 | . 1 1 1 . . Low Security (%) 92 | 100 99 89 82 100 . Level 1 7 | . . 10 17 . . Level 2 . | . . . . . . Level 3 . | . . . . . . Level 4 . | . . . . . . Level 5 . | . . . . . . High Security . | . . . . . . Max Security . | . . . . . . Squads Dispatched 9 | . 3 1 5 . . Investigation 3 | . 1 1 1 . . Extermination . | . . . . . . Reinforcement 6 | . 2 . 4 . . Assault . | . . . . . . Garrison . | . . . . . . Intercept . | . . . . . . Construction Impeded . | . . . . . . Haulers Reinforced . | . . . . . . Stealth | -11 -10 -10 -9 -9 -9 --------- Run | Scr Mat Min Mat Min Exi Distress Signals 4 | . 2 . 2 . . Communications Jammed . | . . . . . . Distress Signals . | . . . . . . Times Spotted 70 | . 20 12 26 5 7 Peak Tracking Total 9 | . 4 3 4 2 9 Tactical Retreats 2 | . . 2 . . . Traps | -11 -10 -10 -9 -9 -9 ------- Run | Scr Mat Min Mat Min Exi Traps Triggered 1 | . 1 . . . . Indirectly . | . . . . . . Trap Hack Attempts . | . . . . . . Triggered . | . . . . . . Disarmed . | . . . . . . Reprogrammed . | . . . . . . Reused . | . . . . . . Traps Extracted . | . . . . . . Installed . | . . . . . . Triggered . | . . . . . . Exploded 3 | . . . . . 3 Machines | -11 -10 -10 -9 -9 -9 ---------- Run | Scr Mat Min Mat Min Exi Machines Disabled 4 | . 2 . . . 2 Max in Single Turn 1 | . 1 . . . 1 Machines Sabotaged . | . . . . . . Garrisons Compromised . | . . . . . . Overloaded Fab Kills . | . . . . . . Fab Network Shutdowns . | . . . . . . Hacking | -11 -10 -10 -9 -9 -9 --------- Run | Scr Mat Min Mat Min Exi Machines Accessed 14 | . 8 1 3 . 2 Terminals 9 | . 6 1 2 . . Fabricators . | . . . . . . Repair Stations 2 | . 1 . 1 . . Recycling Units 1 | . 1 . . . . Scanalyzers . | . . . . . . Garrison Access . | . . . . . . Total Hacks 47 | . 22 6 17 . 2 Successful 26 | . 13 3 8 . 2 Failed 21 | . 9 3 9 . . Catastrophic 3 | . 2 . 1 . . Database Lockouts . | . . . . . . Manual 23 | . 14 5 3 . 1 Terminals 35 | . 17 6 12 . . Fabricators . | . . . . . . Repair Stations 7 | . 2 . 5 . . Recycling Units 3 | . 3 . . . . Scanalyzers . | . . . . . . Garrison Access . | . . . . . . Terminal Hacks 11 | . 5 2 2 . 2 Record 1 | . . . . . 1 Part Schematic 2 | . 1 1 . . . Robot Analysis 1 | . 1 . . . . Prototype ID Bank 1 | . . . 1 . . Locate Traps 1 | . 1 . . . . Hauler Manifests 2 | . 1 . 1 . . Zone Layout 2 | . 1 1 . . . EX-Prototype ID Bank 1 | . . . . . 1 Fabricator Hacks . | . . . . . . Repair Station Hacks 5 | . 2 . 3 . . Scan Component 3 | . 1 . 2 . . Repair 2 | . 1 . 1 . . Recycling Unit Hacks . | . . . . . . Scanalyzer . | . . . . . . Garrison Access Hacks . | . . . . . . Unauthorized Hacks 10 | . 6 1 3 . . Terminals 9 | . 5 1 3 . . Track 5 | . 2 1 2 . . Assimilate 2 | . 1 . 1 . . Botnet 1 | . 1 . . . . Operators 1 | . 1 . . . . Fabricators . | . . . . . . Repair Stations . | . . . . . . Recycling Units 1 | . 1 . . . . Tunnel 1 | . 1 . . . . Scanalyzers . | . . . . . . Garrison Access . | . . . . . . Data Cores Recovered . | . . . . . . Used . | . . . . . . Hacking Detections 12 | . 8 1 3 . . Full Trace Events 2 | . . 1 1 . . Feedback Events . | . . . . . . Feedback Blocked . | . . . . . . Robot Schematics Acquired . | . . . . . . Robots Built . | . . . . . . Matter . | . . . . . . Time . | . . . . . . Total Robot Build Rating . | . . . . . . Part Schematics Acquired 2 | . 1 1 . . . Parts Built . | . . . . . . Matter . | . . . . . . Time . | . . . . . . Total Part Build Rating . | . . . . . . Parts Repaired 2 | . 1 . 1 . . Time 64 | . 32 . 32 . . Parts Recycled . | . . . . . . Recycled Matter . | . . . . . . Retrieved Matter . | . . . . . . Retrieved Components . | . . . . . . Parts Scanalyzed . | . . . . . . Part Schematics Acquired . | . . . . . . Parts Damaged . | . . . . . . Bothacking | -11 -10 -10 -9 -9 -9 ------------ Run | Scr Mat Min Mat Min Exi Used RIF Installer . | . . . . . . Robots Hacked . | . . . . . . Non-combat . | . . . . . . Combat . | . . . . . . Robot Hacks Applied . | . . . . . . Relay Couplers Released . | . . . . . . Robots Rewired . | . . . . . . Allies Hacked . | . . . . . . Hacks Repelled . | . . . . . . Allies | -11 -10 -10 -9 -9 -9 -------- Run | Scr Mat Min Mat Min Exi Total Allies . | . . . . . . Largest Group . | . . . . . . Highest-Rated Group . | . . . . . . Highest-Rated Ally . | . . . . . . Total Orders . | . . . . . . Ally Attacks . | . . . . . . Total Damage . | . . . . . . Kills . | . . . . . . Allies Corrupted . | . . . . . . Allies Melted . | . . . . . . Intel | -11 -10 -10 -9 -9 -9 ------- Run | Scr Mat Min Mat Min Exi Robot Analysis Total 1 | . 1 . . . . Derelict Logs Recovered 3 | . . 3 . . . Drone Launches . | . . . . . . Drone Recoveries . | . . . . . . Exploration | -11 -10 -10 -9 -9 -9 ------------- Run | Scr Mat Min Mat Min Exi Turns Passed 5000 | 118 1378 1102 929 395 1078 Spaces Moved 2426 | 77 755 588 340 199 467 Core 2 | 2 . . . . . Treads 2281 | 7 680 588 340 199 467 Legs . | . . . . . . Wheels 143 | 68 75 . . . . Hover . | . . . . . . Flight . | . . . . . . Fastest Speed 50 | 50 90 160 180 180 180 Average Speed 164 | 93 153 160 180 180 180 Slowest Speed 180 | 160 160 160 180 180 180 Overloaded Moves . | . . . . . . Propulsion Burnouts . | . . . . . . Robots Hopped . | . . . . . . Cave-ins Triggered . | . . . . . . Exploration Rate (%) 57 | 5 99 88 28 56 70 Regions Visited 5 Branch Regions 3 Pre-discovered Areas 4 | . 1 2 . . 1 Known Exits Taken . | . . . . . . Unknown Exits Taken 5 | 1 1 1 1 1 . Scrap Searched 3 | . . 1 . 2 . Spaces Dug . | . . . . . . Terrain Destroyed 67 | . 11 . 26 . 30 Melee . | . . . . . . Projectile . | . . . . . . AOE 67 | . 11 . 26 . 30 Terrain Rammed . | . . . . . . Walls Destroyed . | . . . . . . Machines Disabled . | . . . . . . Actions | -11 -10 -10 -9 -9 -9 --------- Run | Scr Mat Min Mat Min Exi Total 3105 | 102 918 673 557 219 636 Wait 259 | . 69 12 125 10 43 Move 2421 | 76 754 587 339 198 467 Hop . | . . . . . . Pick Up 43 | 10 17 3 10 . 3 Fast Attach 12 | 5 5 . 2 . . Attach 12 | 2 . 1 2 . 7 Detach . | . . . . . . Swap 26 | . 10 3 8 . 5 Drop 40 | . 19 4 7 . 10 Fire 162 | 9 36 41 60 11 5 Melee . | . . . . . . Ram . | . . . . . . Kick . | . . . . . . Crush 128 | . 8 20 4 . 96 Escape Stasis . | . . . . . . Rewire 2 | . . 2 . . . Trap . | . . . . . . Miscellaneous . | . . . . . . Route ------- -11/Scrapyard -10/Materials (discovered 4 exits: *Mat x3 / *Min) -10/Mines (discovered 2 exits: *Mat x2) -9/Materials (discovered 2 exits: [*Mat] / [*Min]) -9/Mines (discovered 2 exits: [*Mat] / *Exi) -9/Exiles (discovered 1 exit: [*Min]) History --------- Turn | Location | Event 25 | -11/Scrapyard | Discovered new exit (range 16) 119 | -11/Scrapyard | Entered Materials 308 | -10/Materials | Build established: Mutant 332 | -10/Materials | Discovered new exit (range 12) 530 | -10/Materials | Discovered new exit (range 15) 804 | -10/Materials | Repaired Autogun 985 | -10/Materials | Discovered new exit (range 6) 1143 | -10/Materials | Discovered new exit (range 16) 1497 | -10/Materials | Entered Mines 1654 | -10/Mines | Discovered new exit (range 6) 1948 | -10/Mines | Discovered new exit (range 14) 2015 | -10/Mines | Found a damaged Exp. Sensor Array with a note attached 2021 | -10/Mines | Found Prototype Device 2115 | -10/Mines | Core integrity fell below 50% 2359 | -10/Mines | Learned Materials security intel 2444 | -10/Mines | Learned location of Storage (-8) 2599 | -10/Mines | Entered Materials 2599 | -9/Materials | Evolved 2 slots: Utility x2 2906 | -9/Materials | Build established: Hauler-Mutant 3156 | -9/Materials | Repaired Imp. Treads 3407 | -9/Materials | Discovered new exit (range 5) 3493 | -9/Materials | Discovered new exit (range 12) 3528 | -9/Materials | Entered Mines 3734 | -9/Mines | Discovered new exit (range 11) 3898 | -9/Mines | Deemed a non-threat by the Exiles lab entrance 3900 | -9/Mines | Discovered new exit (range 5) 3923 | -9/Mines | Entered Exiles 3967 | -9/Exiles | Met 8R-AWN 3997 | -9/Exiles | Met EX-HEX 4091 | -9/Exiles | Met EX-DEC 4170 | -9/Exiles | Discovered new exit (range 14) 4292 | -9/Exiles | Learned location of Zion (-6) 4512 | -9/Exiles | Build established: Mutant 4521 | -9/Exiles | Met EX-BIN 4545 | -9/Exiles | Aligned with FarCom system 4547 | -9/Exiles | Given EX-Vault access code 4588 | -9/Exiles | Opened EX-Vault 4628 | -9/Exiles | Warned to stay clear of 0b10 Research branches 4747 | -9/Exiles | Attacked by the Exiles 4863 | -9/Exiles | Core integrity fell below 50% 4898 | -9/Exiles | Lost 4 parts (2n2w) 4904 | -9/Exiles | Core integrity fell below 20% 5001 | -9/Exiles | Destroyed by 8R-AWN with 8R-AWN's Boregun Last Messages --------------- 04988_ Penetrated by HV Slug. 04988_ HV Slug penetrates Earth. 04988_ Penetrated by HV Slug. 04988_ HV Slug penetrates Earth. 04989_ The unstable cave ceiling collapses. 04989_ Slammed into 8R-AWN. 04992_ HV Slug penetrates Wall. 04992_ HV Slug penetrates Machine. 04992_ Machine disabled. 04992_ Penetrated by HV Slug. 04992_ Critical hit. 04992_ Imp. Treads destroyed. 04992_ HV Slug penetrates Wall. 04994_ Slammed into 8R-AWN. 04997_ Penetrated by HV Slug. 04997_ HV Slug penetrates Wall. 04997_ Penetrated by HV Slug. 04997_ HV Slug penetrates Wall. 04997_ Slammed into 8R-AWN. 05001_ Penetrated by HV Slug. Map ----- +----------------------------------------------------+ | ?????????????????????????????????????????????????? | | ?????????????????????????????????????????????????? | | ?????????????????????????????????????????????????? | | ?????????????????????????????????????????????????? | | ?????????????????????????????????????????????????? | | ?????????????????????????????????????????????????? | | ?????????????????????????????????????????????????? | | ?????????????????????????????????????????????????? | | ????????#####????????????????????????????????????? | | ???????## ##???????????????????????????????????? | | ???????# #???????????????????????????????????? | | ???????#